Cogmind - Beta 13 @@@ ROGUE MODE // 2024.07.01 @ 00:42:22 Player: H3-RMN Result: Destroyed by S-43 Plague with Heavy Machine Gun Performance ------------- Evolutions (9) 4500 Regions Visited (17) 3400 Robots Destroyed (116) 580 Value Destroyed (3373) 3373 Prototype IDs (48) 960 Alien Tech Used (2) 400 Bonus (4243) 4243 TOTAL SCORE: 17456 Bonus ------- Triggered Max Security 2000 High Alert Combat Kills 443 Entered DSFs 1000 Aligned with FarCom 300 Scanned by Researcher 500 Cogmind --------- Core Integrity 0/1600 Matter 140/300 Energy 100/100 System Corruption 8% Temperature Cool (0) Movement Core (50) Location -1/Command Parts ------- > --- POWER (2) -------- (None) > --- PROPULSION (10) -- Biometal Heavy Treads > --- UTILITY (11) ----- (None) > --- WEAPON (2) ------- (None) > --- INVENTORY (5) ---- Biometal Heavy Treads Medium Regenerative Plating Improved Plasma Cutter Enhanced Force Lance Peak State ------------ > --- POWER ------------ (None) > --- PROPULSION ------- Biometal Medium Treads Improved Heavy Siege Treads High-density Centrium Wheel Cooled Impulse Thruster > --- UTILITY ---------- Advanced Gravity Neutralizer Transport Network Coupler Armor Integrity Analyzer Improved Transmission Jammer SHELL Armor Improved Hacking Suite Authchip [Armor] Authchip [Weapon] > --- WEAPON ----------- (None) > --- INVENTORY -------- Medium Regenerative Plating Warp Gun Advanced Micro-nuke Launcher Improved Plasma Cutter Enhanced Force Lance [Rating: 107] Favorites ----------- Power Ion Engine Engine Ion Engine Power Core Light Fission Core Reactor Micro Antimatter Reactor Propulsion Wheel Treads Advanced Treads Wheel Wheel Hover Unit Combat Linear Gravjet Flight Unit Nuclear Pulse Thruster Utility Huge Storage Unit Device Seismic Detector Storage Huge Storage Unit Processor Transport Network Coupler Hackware Hacking Suite Protection Light Armor Plating Weapon Autogun Energy Gun Heavy Particle Gun Energy Cannon Particle Cannon Ballistic Gun Autogun Launcher Grenade Launcher Special Weapon Improved Plasma Cutter Slashing Weapon Greatsword Piercing Weapon Enhanced Force Lance Special Melee Weapon Datajack Build | -11 -10 -10 -10 -9 -8 -7 -6 -6 -5 -4 -4 -3 -3 -2 -2 -1 -1 ------- Run | Yrd Mat Min Exi Min Mat Fac Fac DSF Fac Fac DSF Res Tes Res Qua Acc Com Slots Evolved 18 | . . . . . 4 2 2 . 2 2 . 2 . 2 . 2 . Power 1 | . . . . . . . 1 . . . . . . . . . . Propulsion 8 | . . . . . 1 2 1 . . . . . . 2 . 2 . Utility 9 | . . . . . 3 . . . 2 2 . 2 . . . . . Weapon . | . . . . . . . . . . . . . . . . . . Parts Attached 165 | 8 4 3 1 . 33 26 . 19 5 . 7 19 10 3 7 16 4 Power 12 | 1 . . . . 5 1 . 2 . . . 3 . . . . . Engine 7 | 1 . . . . 5 1 . . . . . . . . . . . Core 2 | . . . . . . . . 2 . . . . . . . . . Reactor 3 | . . . . . . . . . . . . 3 . . . . . Propulsion 60 | 2 1 . . . 8 6 . 9 . . 4 8 4 1 2 11 4 Treads 23 | 1 1 . . . 5 4 . . . . . 1 1 . 2 4 4 Leg . | . . . . . . . . . . . . . . . . . . Wheel 7 | 1 . . . . 3 2 . . . . . . 1 . . . . Hover 6 | . . . . . . . . . . . . . . . . 6 . Flight 24 | . . . . . . . . 9 . . 4 7 2 1 . 1 . Utility 49 | 2 1 . . . 13 8 . 6 5 . 3 6 2 2 . 1 . Device 23 | 1 . . . . 6 6 . . 5 . 1 4 . . . . . Storage 4 | 1 1 . . . 1 1 . . . . . . . . . . . Processor 3 | . . . . . . . . . . . 1 1 . . . 1 . Hackware 8 | . . . . . 1 . . 5 . . 1 1 . . . . . Protection 11 | . . . . . 5 1 . 1 . . . . 2 2 . . . Artifact . | . . . . . . . . . . . . . . . . . . Weapon 44 | 3 2 3 1 . 7 11 . 2 . . . 2 4 . 5 4 . Energy Gun 6 | 1 . . . . 1 1 . . . . . . 1 . . 2 . Energy Cannon 5 | . 1 . . . 2 2 . . . . . . . . . . . Ballistic Gun 14 | 2 1 2 . . 3 4 . . . . . . . . 1 1 . Ballistic Cannon . | . . . . . . . . . . . . . . . . . . Launcher 9 | . . 1 . . 1 3 . . . . . 1 1 . 2 . . Special Weapon 1 | . . . . . . . . . . . . . 1 . . . . Impact Weapon . | . . . . . . . . . . . . . . . . . . Slashing Weapon 4 | . . . . . . 1 . 2 . . . 1 . . . . . Piercing Weapon 4 | . . . . . . . . . . . . . 1 . 2 1 . Special Melee Weapon 1 | . . . 1 . . . . . . . . . . . . . . Unidentified Prototypes 13 | . . . . . 1 . . . 1 . . 4 4 . 3 . . Parts Lost 81 | . . . . . 17 14 . 5 . . 2 18 1 7 9 6 2 Power 7 | . . . . . 5 . . . . . . 2 . . . . . Propulsion 40 | . . . . . 6 5 . 3 . . 2 10 . 3 5 5 1 Utility 22 | . . . . . 4 6 . 1 . . . 4 1 4 2 . . Weapon 12 | . . . . . 2 3 . 1 . . . 2 . . 2 1 1 Highest Loss Streak 9 | . . . . . 9 8 . 3 . . 2 9 1 7 9 3 2 To Critical Strikes 4 | . . . . . . . . . . . . . . 1 . 3 . Average Slot Usage (%) 83 | . 100 100 100 100 91 88 . 57 85 . 87 62 50 39 22 17 23 Engine 8 | . 14 14 14 14 8 6 . . . . . . . . . . . Treads 12 | . 14 14 14 14 15 20 . . . . . . 6 3 . 3 1 Wheel 9 | . 14 14 14 14 11 9 . . . . . . 3 4 3 . . Flight 2 | . . . . . . . . 25 29 . 27 13 4 6 3 . 2 Device 12 | . 14 14 14 14 16 12 . . 8 . 13 11 9 4 . . . Storage 8 | . 14 14 14 14 9 7 . . . . . . . . . . . Processor 1 | . . . . . . . . . . . 1 5 9 7 4 7 6 Hackware 5 | . . . . . 6 6 . 13 29 . 28 20 14 8 5 . . Protection 2 | . . . . . 5 6 . 3 . . . . . 2 2 . . Energy Gun 1 | . 1 . . . 3 . . . . . . . . . . . 1 Energy Cannon 4 | . 6 14 4 . 5 5 . . . . . . . . . . . Ballistic Gun 9 | . 19 13 14 14 8 6 . . . . . . . . . . . Special Melee Weapon 1 | . . . 9 14 . . . . . . . . . . . . . Naked Turns . | . . . . . . . . . . . . . . . . . . Heaviest Build 107 | 14 91 92 92 90 103 107 3 19 24 24 28 35 8 8 16 8 7 Greatest Support 86 | 20 10 10 10 10 44 86 3 33 27 27 39 41 3 21 21 20 7 Greatest Overweight (x) 10 | 1 9 9 9 8 10 10 . . . . . 1 2 . 2 2 . Average Overweight (x) 2 | . 7 9 8 8 5 1 . . . . . . . . . . . Largest Inventory Capacity 25 | 8 25 25 25 25 25 25 5 5 5 5 5 5 5 5 5 5 5 Average Capacity 19 | 7 22 25 25 25 25 24 5 5 5 5 5 5 5 5 5 5 5 Most Carried 25 | 6 25 25 25 25 25 25 5 5 5 5 5 5 5 5 5 5 5 Average Carried 17 | 3 15 25 24 25 24 23 5 4 4 5 4 4 3 4 4 4 5 Final Capacity 25 | 8 25 25 25 25 25 5 5 5 5 5 5 5 5 5 5 5 5 Final Carried 25 | 6 25 25 25 25 22 5 5 5 5 5 5 3 5 5 5 5 5 Class Distribution -------------------- 69% | Mutant 15% | Scavenger-Mutant 6% | Sprinter 5% | Scavenger-Skirmisher Dominant Class ---------------- Mutant | -10/Materials Mutant | -10/Mines Mutant | -10/Exiles Mutant | -9/Mines Scavenger-Mutant | -8/Materials Scavenger-Skirmisher | -7/Factory Scavenger-Skirmisher | -6/Factory Scavenger-Skirmisher | -6/DSF Sprinter | -5/Factory Sprinter | -4/Factory Sprinter | -4/DSF Mutant | -3/Research Mutant | -3/Testing Mutant | -2/Research Mutant | -2/Quarantine Mutant | -1/Access Mutant | -1/Command Resources | -11 -10 -10 -10 -9 -8 -7 -6 -6 -5 -4 -4 -3 -3 -2 -2 -1 -1 ----------- Run | Yrd Mat Min Exi Min Mat Fac Fac DSF Fac Fac DSF Res Tes Res Qua Acc Com Matter Collected 2653 | 264 440 . 70 . 649 624 . 43 172 . 60 60 2 . 59 210 . Remotely . | . . . . . . . . . . . . . . . . . . Salvage Created 4121 | 92 304 18 . . 1605 1061 . 39 232 . 117 149 . . 249 218 37 Parts 221 | 6 24 3 . . 87 45 . 6 13 . 4 11 . . 13 9 . Haulers Intercepted 6 | . 2 . . . 2 . . . . . 1 . . . 1 . . Recyclers Shooed 5 | . 1 . . . . 3 . . . . . . . . . 1 . Parts Field Recycled . | . . . . . . . . . . . . . . . . . . Retrieved Matter . | . . . . . . . . . . . . . . . . . . Parts Self-Destructed . | . . . . . . . . . . . . . . . . . . Prevented . | . . . . . . . . . . . . . . . . . . Kills | -11 -10 -10 -10 -9 -8 -7 -6 -6 -5 -4 -4 -3 -3 -2 -2 -1 -1 ------- Run | Yrd Mat Min Exi Min Mat Fac Fac DSF Fac Fac DSF Res Tes Res Qua Acc Com Combat Hostiles Destroyed 64 | . 6 3 . . 30 17 . 2 . . . 2 . . . 3 1 Melee 4 | . . . . . . . . 2 . . . 2 . . . . . Guns 29 | . 6 . . . 14 5 . . . . . . . . . 3 1 Cannons 13 | . . . . . 12 1 . . . . . . . . . . . AOE 18 | . . 3 . . 4 11 . . . . . . . . . . . Classes Destroyed 15 | 2 4 . . . 5 1 . 1 1 . . . . . 1 . . Worker 14 | . . . . . 2 9 . . . . . 1 . . 2 . . Builder 6 | . . . . . 1 2 . . 1 . . 1 . . 1 . . Tunneler 3 | 1 . . . . 1 1 . . . . . . . . . . . Hauler 6 | . 2 . . . 2 . . . . . 1 . . . 1 . . Recycler 9 | 1 . . . . 1 5 . . 1 . . . . . . 1 . Mechanic 1 | . . . . . . . . . 1 . . . . . . . . Operator 2 | . . . . . 1 . . . . . . 1 . . . . . Watcher 8 | . 3 . . . 1 2 . . 1 . . 1 . . . . . Swarmer 21 | . 3 3 . . 4 6 . . . . . 2 . . . 3 . Cutter 3 | . . . . . . . . 2 . . . . . . . . 1 Grunt 30 | . 3 . . . 20 7 . . . . . . . . . . . Brawler 3 | . . . . . 2 1 . . . . . . . . . . . Researcher 3 | . . . . . . . . . . . . . . . 3 . . Sentry 4 | . . . . . 4 . . . . . . . . . . . . Programmer 3 | . . . . . . 3 . . . . . . . . . . . Best Kill Streak 14 | 1 3 3 . . 7 14 . 2 2 . 1 3 . . 7 3 1 Combat Bots Only 7 | . 3 3 . . 7 4 . 2 . . . 2 . . . 3 1 Max Kills in Single Turn 6 | 1 1 2 . . 2 6 . 1 1 . 1 1 . . 5 1 1 Gunslinging 1 | . . . . . 1 . . . . . . . . . . . . Exploded 3 | . . 2 . . 1 3 . . . . . . . . . . . Melee 1 | . . . . . . . . 1 . . . 1 . . . . . Uniques/NPCs Destroyed . | . . . . . . . . . . . . . . . . . . Combat | -11 -10 -10 -10 -9 -8 -7 -6 -6 -5 -4 -4 -3 -3 -2 -2 -1 -1 -------- Run | Yrd Mat Min Exi Min Mat Fac Fac DSF Fac Fac DSF Res Tes Res Qua Acc Com Hostile Shots Fired 1198 | . 37 4 . . 227 131 . 16 . . 5 135 56 75 81 260 171 Missed 420 | . 12 . . . 64 35 . 5 . . 1 57 18 32 20 109 67 Damage Taken 15988 | . 341 36 . . 2549 1651 . 412 . . 215 1807 881 892 1651 2990 2563 Core 3982 | . 67 . . . 435 169 . 149 . . 118 519 208 251 449 654 963 Absorbed by Shields 197 | . . . . . . 81 . . . . . 54 . . 62 . . Redirected to Shielding 145 | . . . . . . . . 45 . . . . . 100 . . . Regen/Repaired (Parts) 3 | . . . . . . . . . . . . . . 3 . . . Core Remaining (%) 69 | 100 . . . 73 20 75 . 82 100 . 89 . 44 . 39 . . Volleys Fired 247 | 3 48 2 . . 123 49 . . . . . 1 1 . 3 9 8 Largest 2 | 2 2 1 . . 2 2 . . . . . 1 1 . 1 1 1 Hottest 101 | 60 80 30 . . 98 101 . . . . . 30 30 . 30 90 90 Shots Fired 457 | 6 96 2 . . 242 89 . . . . . 1 1 . 3 9 8 Gun 323 | 6 92 . . . 155 53 . . . . . . . . . 9 8 Cannon 110 | . 4 . . . 78 28 . . . . . . . . . . . Launcher 24 | . . 2 . . 9 8 . . . . . 1 1 . 3 . . Special . | . . . . . . . . . . . . . . . . . . Kinetic 259 | 3 89 . . . 114 48 . . . . . . . . . 5 . Thermal 174 | 3 7 . . . 119 33 . . . . . . . . . 4 8 Explosive 24 | . . 2 . . 9 8 . . . . . 1 1 . 3 . . Electromagnetic . | . . . . . . . . . . . . . . . . . . Robot Hit Streak 17 | 4 17 . . . 15 9 . . . . . . . . 8 2 6 Robot Miss Streak 4 | . 4 . . . 4 4 . . . . . . . . 2 3 . Penetration Max 1 | . . . . . . . . . . . . . . . . 1 . Secondary Targets 3 | . 1 . . . 2 . . . . . . . . . . . . Max Gunslinging Chain 1 | . 1 . . . 1 . . . . . . . . . . . . Shots Hit Robots 312 | 4 64 . 4 . 159 53 . 2 4 . 1 10 . . 2 5 4 Core Hits 197 | 3 20 2 . . 78 55 . 2 3 . 1 6 1 . 18 6 2 Critical Kills 3 | . . . . . . 1 . . . . . . . . . 1 1 Critical Parts Destroyed 2 | . 1 . . . 1 . . . . . . . . . . . . Critical Strikes 6 | . 1 . . . 2 1 . . . . . . . . . 1 1 Burn 1 | . . . . . 1 . . . . . . . . . . . . Destroy 5 | . 1 . . . 1 1 . . . . . . . . . 1 1 Melee Attacks 37 | . . . 4 . . . . 3 7 . 1 17 1 . 2 2 . Impact . | . . . . . . . . . . . . . . . . . . Slashing 28 | . . . . . . . . 3 7 . 1 17 . . . . . Piercing 5 | . . . . . . . . . . . . . 1 . 2 2 . Sneak Attacks 13 | . . . 4 . . . . . 3 . 1 3 . . . 2 . Combat Hostiles . | . . . . . . . . . . . . . . . . . . Follow-up Attacks . | . . . . . . . . . . . . . . . . . . Damage Inflicted 10235 | 47 712 158 . . 3175 2826 . 61 430 . 125 748 17 7 1276 411 242 Guns 3499 | 47 658 . . . 1731 619 . . . . . . . . . 218 226 Cannons 1467 | . 54 . . . 1041 372 . . . . . . . . . . . Explosions 3637 | . . 158 . . 403 1835 . . . . . . 17 . 1224 . . Melee 1579 | . . . . . . . . 61 430 . 125 733 . . 52 178 . Ramming 53 | . . . . . . . . . . . . 15 . 7 . 15 16 Kinetic 2419 | 13 634 . . . 1115 543 . . . . . . . . . 114 . Thermal 2993 | 34 78 . . . 1657 894 . . . . . . . . . 104 226 Explosive 3175 | . . 158 . . 403 1389 . . . . . . 1 . 1224 . . Electromagnetic 16 | . . . . . . . . . . . . . 16 . . . . Impact . | . . . . . . . . . . . . . . . . . . Slashing 1349 | . . . . . . . . 61 430 . 125 733 . . . . . Piercing 230 | . . . . . . . . . . . . . . . 52 178 . Highest Corruption 9 | . . . . . 1 3 . . . . . 9 9 . . 2 6 Average Corruption 2 | . . . . . 1 2 . . . . . 7 9 . . 1 3 Corruption Purged 4 | . . . . . . 4 . . . . . . . . . . . Corruption Blocked . | . . . . . . . . . . . . . . . . . . Effects 20 | . . . . . 6 5 . . . . . 2 3 . . 2 2 Message Errors 5 | . . . . . . 2 . . . . . 1 1 . . . 1 Matter Fused 2 | . . . . . 1 1 . . . . . . . . . . . Heat Flow Errors 4 | . . . . . 2 . . . . . . . 1 . . 1 . Energy Discharges 2 | . . . . . 1 . . . . . . . . . . 1 . Data Loss (minor) 3 | . . . . . 1 . . . . . . 1 1 . . . . Data Loss (major) 1 | . . . . . . . . . . . . . . . . . 1 Misfires 3 | . . . . . 1 2 . . . . . . . . . . . Overload Shots . | . . . . . . . . . . . . . . . . . . Overflow Damage 473 | . . 12 . . . 285 . . 82 . . . . . 6 88 . Projectiles 3 | . . . . . . 3 . . . . . . . . . . . Explosions 300 | . . 12 . . . 282 . . . . . . . . 6 . . Melee 170 | . . . . . . . . . 82 . . . . . . 88 . Knockbacks . | . . . . . . . . . . . . . . . . . . Impact . | . . . . . . . . . . . . . . . . . . Kinetic . | . . . . . . . . . . . . . . . . . . Secondary . | . . . . . . . . . . . . . . . . . . Self-Inflicted Damage 464 | . . . . . . 152 . . . . . 50 . 3 244 7 8 Shots 7 | . . . . . . 3 . . . . . 1 . . 3 . . Rammed 11 | . . . . . . . . . . . . 3 . 1 . 3 4 Targets Rammed 11 | . . . . . . . . . . . . 3 . 1 . 3 4 Kicked . | . . . . . . . . . . . . . . . . . . Crushed . | . . . . . . . . . . . . . . . . . . Highest Temperature 393 | . 54 . . . 208 393 . . 83 4 . 319 116 . . 58 . Average Temperature 74 | . 15 . . . 66 174 . . 32 3 . 35 70 . . 33 . Received Heat Transfer 2733 | . 189 . . . 1386 579 . . . . . 93 153 27 297 . 9 Effects 4 | . . . . . . 4 . . . . . . . . . . . Shutdowns 1 | . . . . . . 1 . . . . . . . . . . . Interference 3 | . . . . . . 3 . . . . . . . . . . . Siege Activations . | . . . . . . . . . . . . . . . . . . Robots Corrupted . | . . . . . . . . . . . . . . . . . . Combat Hostiles . | . . . . . . . . . . . . . . . . . . Parts Fried . | . . . . . . . . . . . . . . . . . . Impact Corruptions . | . . . . . . . . . . . . . . . . . . Robots Melted . | . . . . . . . . . . . . . . . . . . Combat Hostiles . | . . . . . . . . . . . . . . . . . . Parts Melted 5 | 1 . . . . 2 1 . . . . . . . . . 1 . Heat Transferred 4976 | 75 161 . . . 3219 1077 . . . . . . . . . 148 296 Parts Sabotaged . | . . . . . . . . . . . . . . . . . . Parts Stolen . | . . . . . . . . . . . . . . . . . . Parts Stripped . | . . . . . . . . . . . . . . . . . . Power Chain Reactions . | . . . . . . . . . . . . . . . . . . Alert | -11 -10 -10 -10 -9 -8 -7 -6 -6 -5 -4 -4 -3 -3 -2 -2 -1 -1 ------- Run | Yrd Mat Min Exi Min Mat Fac Fac DSF Fac Fac DSF Res Tes Res Qua Acc Com Peak Influence 1763 | 10 189 82 . . 572 817 301 260 181 88 65 410 1763 1153 1735 1295 873 Initial 1100 | . 6 4 . . . 259 301 210 126 88 65 27 162 1100 648 1100 813 Average 397 | 4 66 80 . . 279 532 301 238 157 88 53 214 1615 1122 1628 1209 847 Maximum Alert Level 5 | . . . . . 2 3 1 1 . . . 2 5 4 5 4 3 Low Security (%) 44 | 100 100 100 . 100 41 . . 3 100 100 100 41 . . . . . Level 1 14 | . . . . . 10 36 100 96 . . . 35 . . . . . Level 2 21 | . . . . . 47 33 . . . . . 23 . . 1 . . Level 3 6 | . . . . . . 30 . . . . . . . . . . 100 Level 4 7 | . . . . . . . . . . . . . . 100 . 100 . Level 5 . | . . . . . . . . . . . . . . . . . . High Security . | . . . . . . . . . . . . . . . . . . Max Security 4 | . . . . . . . . . . . . . 99 . 98 . . Squads Dispatched 38 | . . . . . 5 7 1 1 1 . . 5 6 1 2 6 3 Investigation 8 | . . . . . . 1 1 . 1 . . 2 . . . 3 . Extermination 5 | . . . . . . 3 . . . . . 1 . . . 1 . Reinforcement 15 | . . . . . 2 3 . 1 . . . 2 . 1 2 1 3 Assault 8 | . . . . . 1 . . . . . . . 6 . . 1 . Garrison 2 | . . . . . 2 . . . . . . . . . . . . Intercept . | . . . . . . . . . . . . . . . . . . Searches Triggered . | . . . . . . . . . . . . . . . . . . Construction Impeded 1 | . . . . . . 1 . . . . . . . . . . . Haulers Reinforced . | . . . . . . . . . . . . . . . . . . Active Scanning Responses . | . . . . . . . . . . . . . . . . . . Cargo Convoy Interrupts . | . . . . . . . . . . . . . . . . . . Stealth | -11 -10 -10 -10 -9 -8 -7 -6 -6 -5 -4 -4 -3 -3 -2 -2 -1 -1 --------- Run | Yrd Mat Min Exi Min Mat Fac Fac DSF Fac Fac DSF Res Tes Res Qua Acc Com Distress Signals 19 | . 1 . . . 6 3 . . . . . 5 . 2 . 2 . Communications Jammed 4 | . . . . . . . . . . . . 4 . . . . . Distress Signals 4 | . . . . . . . . . . . . 4 . . . . . Times Spotted 238 | . 13 3 . . 46 26 . 5 1 . 1 45 28 14 12 20 24 Peak Tracking Total 20 | . 3 3 . . 9 6 . 3 1 . 1 16 20 13 11 11 19 Tactical Retreats 20 | . 1 . . . 2 . . 2 . . . 9 1 . . 4 1 Traps | -11 -10 -10 -10 -9 -8 -7 -6 -6 -5 -4 -4 -3 -3 -2 -2 -1 -1 ------- Run | Yrd Mat Min Exi Min Mat Fac Fac DSF Fac Fac DSF Res Tes Res Qua Acc Com Traps Triggered 9 | . . . . . . 2 . . . . . 3 2 . 1 1 . Indirectly . | . . . . . . . . . . . . . . . . . . Trap Hack Attempts . | . . . . . . . . . . . . . . . . . . Triggered . | . . . . . . . . . . . . . . . . . . Disarmed . | . . . . . . . . . . . . . . . . . . Reprogrammed . | . . . . . . . . . . . . . . . . . . Reused . | . . . . . . . . . . . . . . . . . . Traps Extracted . | . . . . . . . . . . . . . . . . . . Installed . | . . . . . . . . . . . . . . . . . . Triggered . | . . . . . . . . . . . . . . . . . . Objects Rigged 3 | . . . . . 1 1 . . . . . 1 . . . . . Exploded 2 | . . . . . . 1 . . . . . 1 . . . . . Machines | -11 -10 -10 -10 -9 -8 -7 -6 -6 -5 -4 -4 -3 -3 -2 -2 -1 -1 ---------- Run | Yrd Mat Min Exi Min Mat Fac Fac DSF Fac Fac DSF Res Tes Res Qua Acc Com Machines Disabled 23 | . . . . . 4 16 . . . . . . 2 . 1 . . Max in Single Turn 5 | . . . . . 1 5 . . . . . . 1 . 1 . . Garrison Access 2 | . . . . . 1 . . . . . . 1 . . . . . Machines Repaired . | . . . . . . . . . . . . . . . . . . Machines Dismantled 2 | . . . . . . . . . . . . . 2 . . . . Machines Sabotaged . | . . . . . . . . . . . . . . . . . . Overloaded Fab Kills . | . . . . . . . . . . . . . . . . . . Hacking | -11 -10 -10 -10 -9 -8 -7 -6 -6 -5 -4 -4 -3 -3 -2 -2 -1 -1 --------- Run | Yrd Mat Min Exi Min Mat Fac Fac DSF Fac Fac DSF Res Tes Res Qua Acc Com Machines Accessed 31 | . 4 . 2 . 3 1 1 . 6 1 . 6 . 1 . 5 1 Terminals 19 | . 3 . . . 2 . 1 . 4 1 . 2 . 1 . 4 1 Fabricators 2 | . . . . . . . . . 1 . . 1 . . . . . Repair Stations 1 | . . . . . . 1 . . . . . . . . . . . Recycling Units 2 | . 1 . . . . . . . 1 . . . . . . . . Scanalyzers 2 | . . . . . 1 . . . . . . 1 . . . . . Garrison Access 3 | . . . . . . . . . . . . 2 . . . 1 . Total Hacks 73 | . 7 . 5 . 10 2 4 . 15 1 . 16 . 3 . 9 1 Successful 37 | . 5 . 5 . 7 . 1 . 7 1 . 6 . 2 . 3 . Failed 35 | . 1 . . . 3 2 3 . 8 . . 10 . 1 . 6 1 Catastrophic 8 | . . . . . 1 1 . . 2 . . 1 . . . 2 1 Database Lockouts 1 | . 1 . . . . . . . . . . . . . . . . Manual 28 | . 6 . 1 . 4 . . . 9 . . 8 . . . . . Terminals 38 | . 6 . . . 4 . 4 . 8 1 . 5 . 3 . 6 1 Fabricators 7 | . . . . . . . . . 2 . . 5 . . . . . Repair Stations 2 | . . . . . . 2 . . . . . . . . . . . Recycling Units 6 | . 1 . . . . . . . 5 . . . . . . . . Scanalyzers 10 | . . . . . 6 . . . . . . 4 . . . . . Garrison Access 5 | . . . . . . . . . . . . 2 . . . 3 . Terminal Hacks 18 | . 1 . 5 . 1 . 1 . 1 1 . 3 . 2 . 3 . Record 4 | . . . 4 . . . . . . . . . . . . . . Robot Analysis 2 | . 1 . . . 1 . . . . . . . . . . . . Open Door 3 | . . . . . . . . . . . . . . . . 3 . Open DSF 3 | . . . . . . . 1 . . 1 . 1 . . . . . Level Access Points 1 | . . . . . . . . . . . . . . 1 . . . Branch Access Points 2 | . . . . . . . . . . . . 1 . 1 . . . Terminal Index 1 | . . . . . . . . . 1 . . . . . . . . Locate Traps 1 | . . . . . . . . . . . . 1 . . . . . Derelict Proto ID Bank 1 | . . . 1 . . . . . . . . . . . . . . Fabricator Hacks 2 | . . . . . . . . . 1 . . 1 . . . . . Network Status 2 | . . . . . . . . . 1 . . 1 . . . . . Repair Station Hacks . | . . . . . . . . . . . . . . . . . . Recycling Unit Hacks 2 | . 1 . . . . . . . 1 . . . . . . . . Report Inventory 2 | . 1 . . . . . . . 1 . . . . . . . . Scanalyzer 6 | . . . . . 6 . . . . . . . . . . . . Insert Component 3 | . . . . . 3 . . . . . . . . . . . . Analyze 3 | . . . . . 3 . . . . . . . . . . . . Garrison Access Hacks 1 | . . . . . . . . . . . . 1 . . . . . Seal Access 1 | . . . . . . . . . . . . 1 . . . . . Unauthorized Hacks 8 | . 3 . . . . . . . 4 . . 1 . . . . . Terminals 4 | . 3 . . . . . . . 1 . . . . . . . . Track 1 | . 1 . . . . . . . . . . . . . . . . Botnet 3 | . 2 . . . . . . . 1 . . . . . . . . Fabricators 1 | . . . . . . . . . . . . 1 . . . . . Download 1 | . . . . . . . . . . . . 1 . . . . . Repair Stations . | . . . . . . . . . . . . . . . . . . Recycling Units 3 | . . . . . . . . . 3 . . . . . . . . Reject 1 | . . . . . . . . . 1 . . . . . . . . Recyclers 1 | . . . . . . . . . 1 . . . . . . . . Mask 1 | . . . . . . . . . 1 . . . . . . . . Scanalyzers . | . . . . . . . . . . . . . . . . . . Garrison Access . | . . . . . . . . . . . . . . . . . . Data Cores Recovered . | . . . . . . . . . . . . . . . . . . Used . | . . . . . . . . . . . . . . . . . . Hacking Detections 24 | . 3 . . . 3 1 1 . 5 1 . 4 . 1 . 4 1 Full Trace Events 6 | . . . . . . 1 1 . 1 . . 1 . . . 2 . Feedback Events . | . . . . . . . . . . . . . . . . . . Feedback Blocked . | . . . . . . . . . . . . . . . . . . Robot Schematics Acquired 1 | . . . . . . . . . . . . . . . 1 . . Robots Built . | . . . . . . . . . . . . . . . . . . Authchips . | . . . . . . . . . . . . . . . . . . Time . | . . . . . . . . . . . . . . . . . . Total Robot Build Rating . | . . . . . . . . . . . . . . . . . . Part Schematics Acquired 4 | . . . . . 3 . . . . . . 1 . . . . . Parts Built . | . . . . . . . . . . . . . . . . . . Authchips . | . . . . . . . . . . . . . . . . . . Time . | . . . . . . . . . . . . . . . . . . Total Part Build Rating . | . . . . . . . . . . . . . . . . . . Parts Repaired . | . . . . . . . . . . . . . . . . . . Time . | . . . . . . . . . . . . . . . . . . Parts Recycled . | . . . . . . . . . . . . . . . . . . Recycled Matter . | . . . . . . . . . . . . . . . . . . Retrieved Matter . | . . . . . . . . . . . . . . . . . . Retrieved Components . | . . . . . . . . . . . . . . . . . . Parts Scanalyzed 3 | . . . . . 3 . . . . . . . . . . . . Part Schematics Acquired 3 | . . . . . 3 . . . . . . . . . . . . Parts Damaged . | . . . . . . . . . . . . . . . . . . Bothacking | -11 -10 -10 -10 -9 -8 -7 -6 -6 -5 -4 -4 -3 -3 -2 -2 -1 -1 ------------ Run | Yrd Mat Min Exi Min Mat Fac Fac DSF Fac Fac DSF Res Tes Res Qua Acc Com Used RIF Installer . | . . . . . . . . . . . . . . . . . . Robots Hacked 4 | . . . 4 . . . . . . . . . . . . . . Non-combat 3 | . . . 3 . . . . . . . . . . . . . . Combat 1 | . . . 1 . . . . . . . . . . . . . . Robot Hacks Applied 4 | . . . 4 . . . . . . . . . . . . . . parse_system 4 | . . . 4 . . . . . . . . . . . . . . Relay Couplers Released . | . . . . . . . . . . . . . . . . . . Fabnet Peak Effective % . | . . . . . . . . . . . . . . . . . . Robots Rewired . | . . . . . . . . . . . . . . . . . . Allies Hacked . | . . . . . . . . . . . . . . . . . . Hacks Repelled . | . . . . . . . . . . . . . . . . . . Allies | -11 -10 -10 -10 -9 -8 -7 -6 -6 -5 -4 -4 -3 -3 -2 -2 -1 -1 -------- Run | Yrd Mat Min Exi Min Mat Fac Fac DSF Fac Fac DSF Res Tes Res Qua Acc Com Total Allies . | . . . . . . . . . . . . . . . . . . Largest Group . | . . . . . . . . . . . . . . . . . . Highest-Rated Group . | . . . . . . . . . . . . . . . . . . Highest-Rated Ally . | . . . . . . . . . . . . . . . . . . Total Orders . | . . . . . . . . . . . . . . . . . . Ally Attacks . | . . . . . . . . . . . . . . . . . . Total Damage . | . . . . . . . . . . . . . . . . . . Kills . | . . . . . . . . . . . . . . . . . . Allies Corrupted . | . . . . . . . . . . . . . . . . . . Allies Melted . | . . . . . . . . . . . . . . . . . . Intel | -11 -10 -10 -10 -9 -8 -7 -6 -6 -5 -4 -4 -3 -3 -2 -2 -1 -1 ------- Run | Yrd Mat Min Exi Min Mat Fac Fac DSF Fac Fac DSF Res Tes Res Qua Acc Com Robot Analysis Total 2 | . 1 . . . 1 . . . . . . . . . . . . Derelict Logs Recovered . | . . . . . . . . . . . . . . . . . . Drone Launches . | . . . . . . . . . . . . . . . . . . Drone Recoveries . | . . . . . . . . . . . . . . . . . . Exploration | -11 -10 -10 -10 -9 -8 -7 -6 -6 -5 -4 -4 -3 -3 -2 -2 -1 -1 ------------- Run | Yrd Mat Min Exi Min Mat Fac Fac DSF Fac Fac DSF Res Tes Res Qua Acc Com Turns Passed 5969 | 86 972 186 940 40 1480 827 3 109 130 4 34 444 179 109 56 282 88 Spaces Moved 4277 | 64 389 83 454 17 544 342 5 149 330 13 63 833 185 217 55 413 121 Core 877 | 3 . . . . . 43 5 5 . . . 63 185 122 6 408 37 Treads 193 | 1 . . . . 2 190 . . . . . . . . . . . Legs . | . . . . . . . . . . . . . . . . . . Wheels 1654 | 60 389 83 454 17 542 109 . . . . . . . . . . . Hover 4 | . . . . . . . . . . . . . . . . 4 . Flight 1549 | . . . . . . . . 144 330 13 63 770 . 95 49 1 84 Fastest Speed 24 | 50 95 215 200 200 135 50 50 24 27 27 25 28 50 42 42 40 40 Average Speed 104 | 91 190 215 204 200 178 178 50 34 27 27 26 35 51 47 43 51 43 Slowest Speed 233 | 160 215 215 215 200 230 233 50 65 27 27 29 120 150 50 50 150 50 Overloaded Moves . | . . . . . . . . . . . . . . . . . . Propulsion Burnouts . | . . . . . . . . . . . . . . . . . . Robots Hopped 33 | . . . . . . . . . . . . 24 . 7 1 . 1 Cave-ins Triggered . | . . . . . . . . . . . . . . . . . . Teleports 2 | . . . . . . . . . . . . . . . 2 . . Exploration Rate (%) 31 | 3 68 18 71 8 41 13 . 94 10 . 81 27 31 8 12 13 9 Regions Visited 17 Branch Regions 6 Pre-discovered Areas 1 | . . . 1 . . . . . . . . . . . . . . Known Exits Taken 5 | . . . . . . . 1 . . 1 . 1 . 1 1 . . Unknown Exits Taken 10 | 1 1 1 1 1 1 1 . . 1 . . . 1 . . 1 . Scrap Searched . | . . . . . . . . . . . . . . . . . . Spaces Dug 62 | . . 9 . . . . . . 2 . . 29 22 . . . . Terrain Destroyed 210 | . . 9 . . 19 81 . . 2 . . 29 22 . 48 . . Melee 5 | . . . . . . . . . 2 . . 3 . . . . . Projectile 1 | . . . . . . 1 . . . . . . . . . . . AOE 204 | . . 9 . . 19 80 . . . . . 26 22 . 48 . . Terrain Rammed . | . . . . . . . . . . . . . . . . . . Walls Destroyed . | . . . . . . . . . . . . . . . . . . Machines Disabled . | . . . . . . . . . . . . . . . . . . Actions | -11 -10 -10 -10 -9 -8 -7 -6 -6 -5 -4 -4 -3 -3 -2 -2 -1 -1 --------- Run | Yrd Mat Min Exi Min Mat Fac Fac DSF Fac Fac DSF Res Tes Res Qua Acc Com Total 5223 | 81 535 90 463 24 842 475 4 195 355 12 77 920 249 214 78 463 146 Wait 265 | 2 70 . . 8 108 28 . 10 10 . . 3 . . . 16 10 Move 4198 | 63 388 82 453 16 543 341 4 148 329 12 62 785 184 205 52 412 119 Hop 29 | . . . . . . . . . . . . 23 . 4 1 . 1 Pick Up 80 | 5 20 1 2 . 19 11 . 7 1 . 4 6 . 1 1 2 . Fast Attach 91 | 7 2 . . . 10 9 . 16 4 . 3 12 7 2 4 11 4 Attach 49 | . . . . . 13 8 . 2 1 . 4 7 3 1 5 5 . Detach 19 | . . . . . . 2 . . . . . 6 5 . 4 2 . Swap 28 | 1 2 3 1 . 10 9 . 1 . . . 1 . . . . . Drop 66 | . 5 2 3 . 15 13 . 8 3 . 3 11 2 . . 1 . Fire 247 | 3 48 2 . . 123 49 . . . . . 1 1 . 3 9 8 Melee 37 | . . . 4 . . . . 3 7 . 1 17 1 . 2 2 . Ram 11 | . . . . . . . . . . . . 3 . 1 . 3 4 Kick . | . . . . . . . . . . . . . . . . . . Crush . | . . . . . . . . . . . . . . . . . . Escape Stasis 84 | . . . . . . 4 . . . . . 44 30 . 6 . . Rewire . | . . . . . . . . . . . . . . . . . . Trap 3 | . . . . . 1 1 . . . . . 1 . . . . . Miscellaneous 16 | . . . . . . . . . . . . . 16 . . . . Route ------- -11/Scrapyard -10/Materials (discovered 2 exits: [*Mat] / [*Min]) -10/Mines -10/Exiles (discovered 2 exits: [*Min x2]) -9/Mines -8/Materials -7/Factory -6/Factory -6/DSF -5/Factory -4/Factory -4/DSF -3/Research (discovered 2 exits: *Tes x2) -3/Testing -2/Research (discovered 5 exits: Acc x3 / *Qua x2) -2/Quarantine -1/Access -1/Command History --------- Turn | Location | Event 12 | -11/Scrapyard | Discovered new exit (range 15) 87 | -11/Scrapyard | Entered Materials 314 | -10/Materials | Build established: Mutant 851 | -10/Materials | Discovered new exit (range 15) 1029 | -10/Materials | Central database locked down 1039 | -10/Materials | Discovered new exit (range 7) 1059 | -10/Materials | Entered Mines 1109 | -10/Mines | A weapon hastily lodged in a ceiling crevice suddenly fell to the ground 1139 | -10/Mines | Deemed a non-threat by the Exiles lab entrance 1139 | -10/Mines | Discovered new exit (range 5) 1245 | -10/Mines | Entered Exiles 1273 | -10/Exiles | Discovered new exit (range 15) 1299 | -10/Exiles | Met 8R-AWN 1334 | -10/Exiles | Met EX-HEX 1392 | -10/Exiles | Met EX-BIN 1439 | -10/Exiles | Met EX-DEC 1458 | -10/Exiles | Learned location of Zion (-6) 1865 | -10/Exiles | Aligned with FarCom system 1867 | -10/Exiles | Given EX-Vault access code 1923 | -10/Exiles | Opened EX-Vault 1938 | -10/Exiles | Found PSU Rigger 1979 | -10/Exiles | Warned to stay clear of 0b10 Research branches 2169 | -10/Exiles | Discovered new exit (range 10) 2185 | -10/Exiles | Left Exiles lab with PSU Rigger 2185 | -10/Exiles | Entered Mines 2195 | -9/Mines | Discovered new exit (range 6) 2225 | -9/Mines | Entered Materials 2225 | -8/Materials | Evolved 4 slots: Propulsion x1, Utility x3 2810 | -8/Materials | Garrison activated, responded to threat 2884 | -8/Materials | Lost 3 parts (2p1u) 3048 | -8/Materials | Core integrity fell below 50% 3118 | -8/Materials | Destroyed 7 combat bots 3121 | -8/Materials | Lost 9 parts (2p3n2u2w) 3442 | -8/Materials | Build established: Scavenger-Mutant 3644 | -8/Materials | Lost 4 parts (1p2n1u) 3698 | -8/Materials | Discovered new exit (range 3) 3705 | -8/Materials | Entered Factory 3705 | -7/Factory | Evolved 2 slots: Propulsion x2 3997 | -7/Factory | Build established: Scavenger-Skirmisher 4283 | -7/Factory | Lost 3 parts (1n1u1w) 4525 | -7/Factory | Discovered new exit (range 13) 4532 | -7/Factory | Entered another Factory area 4532 | -6/Factory | Evolved 2 slots: Power x1, Propulsion x1 4535 | -6/Factory | Identified exit to DSF 4535 | -6/Factory | Entered DSF 4541 | -6/DSF | Lost 8 parts (3n3u2w) 4555 | -6/DSF | Discovered new exit (range 15) 4570 | -6/DSF | Additional patrols routed to DSF 4644 | -6/DSF | Entered Factory 4644 | -5/Factory | Evolved 2 slots: Utility x2 4660 | -5/Factory | Lost 3 parts (1n1u1w) 4773 | -5/Factory | Discovered new exit (range 3) 4774 | -5/Factory | Entered another Factory area 4774 | -4/Factory | Evolved 2 slots: Utility x2 4778 | -4/Factory | Identified exit to DSF 4778 | -4/Factory | Entered DSF 4798 | -4/DSF | Discovered new exit (range 16) 4809 | -4/DSF | Additional patrols routed to DSF 4812 | -4/DSF | Entered Research 4812 | -3/Research | Evolved 2 slots: Utility x2 4829 | -3/Research | Build established: Sprinter 4854 | -3/Research | Found Prototype Device 4854 | -3/Research | Identified Exp. Thermal Shield 4936 | -3/Research | Lost 4 parts (1p2n1u) 5067 | -3/Research | Lost 9 parts (1p6n1u1w) 5078 | -3/Research | Found Enh. Force Lance 5086 | -3/Research | Identified exit to Testing 5119 | -3/Research | Found Gamma Bomb Array 5217 | -3/Research | Found Prototype Launcher 5217 | -3/Research | Identified Adv. Micro-nuke Launcher 5256 | -3/Research | Entered Testing 5257 | -3/Testing | Maximum security lockdown engaged 5280 | -3/Testing | Found Prototype Energy Gun 5280 | -3/Testing | Identified Warp Gun 5383 | -3/Testing | Found Prototype Protection 5383 | -3/Testing | Identified Med. Regenerative Plating 5386 | -3/Testing | Found Prototype Protection 5386 | -3/Testing | Identified SHELL Armor 5425 | -3/Testing | Discovered new exit (range 13) 5430 | -3/Testing | Spotted Striker 5434 | -3/Testing | Core integrity fell below 50% 5435 | -3/Testing | Entered Research 5435 | -2/Research | Evolved 2 slots: Propulsion x2 5479 | -2/Research | Spotted B-90 Cyclops 5485 | -2/Research | Identified exit to Access 5485 | -2/Research | Identified exit to Quarantine 5544 | -2/Research | Entered Quarantine 5545 | -2/Quarantine | Maximum security lockdown engaged 5547 | -2/Quarantine | Found Alien Artifact 5547 | -2/Quarantine | Identified Transdimensional Reconstructor 5547 | -2/Quarantine | Warped through subspace 5555 | -2/Quarantine | Lost 7 parts (3n4u) 5568 | -2/Quarantine | Found Alien Artifact 5568 | -2/Quarantine | Identified Hpw. Transdimensional Reconstructor 5568 | -2/Quarantine | Warped through subspace 5568 | -2/Quarantine | Discovered exit to Access (range 8) 5578 | -2/Quarantine | Scanned by Researcher 5590 | -2/Quarantine | Core integrity fell below 50% 5600 | -2/Quarantine | Entered Access 5600 | -1/Access | Evolved 2 slots: Propulsion x2 5619 | -1/Access | Build established: Mutant 5630 | -1/Access | Lost 9 parts (5n2u2w) 5861 | -1/Access | Lost 3 parts (3n) 5872 | -1/Access | Discovered new exit (range 7) 5880 | -1/Access | First assault squad dispatched 5882 | -1/Access | Entered Command 5930 | -1/Command | Core integrity fell below 50% 5956 | -1/Command | Core integrity fell below 20% 5970 | -1/Command | Destroyed by S-43 Plague with Heavy Machine Gun Last Messages --------------- 05956_ H-88 Terminator suffers critical hit (Destroy). 05957_ Slug penetrates Wall. 05957_ Penetrated by Slug. 05957_ Slug penetrates C-57 Dissector. 05957_ Penetrated by Slug. 05958_ Slug penetrates C-57 Dissector. 05958_ C-57 Dissector destroyed. 05959_ Penetrated by Slug. 05959_ Biometal Medium Treads severed. 05959_ Adv. Terrain Scan Processor severed. 05960_ Penetrated by Slug. 05961_ Slammed into C-57 Dissector. 05961_ Penetrated by Slug. 05963_ Transport Network Coupler severed. 05965_ Slug penetrates Operations Mainframe. 05965_ Slug penetrates Wall. 05968_ Slammed into S-43 Plague. 05969_ Penetrated by Slug. 05970_ Slammed into S-43 Plague. Map ----- +----------------------------------------------------+ | ?????????????????????????????????????????????????? | | ?????????????????????????????????????????????????? | | ?????????????????????????????????????????????????? | | ?????????????????????????????????????????????????? | | ?????????????????????????????????????????????????? | | ?????????????????????????????????????????????????? | | ?????????????????????????????????????????????????? | | ?????????????????????????????????????????????????? | | ?????????????????????????????????????????????????? | | ?????????????????????????????????????????????????? | | ?????????????????????????????????????????????????? | | ?????????????????????????????????????????????????? | | ?????????????????????????????????????????????????? | | ?????????????????????????????????????????????????? | | ?????????????????????????????????????????????????? | | ?????????????????????#########???????????????????? | | ?????????????????????? #???????????????????? | | ?????????????????????? #???????????????????? | | ?????????????????????? #???????????????????? | | ??????????????????????? #???????????????????? | | ??????????????????????? #######+##??????????? | | ???????????????????????# R ?????????? | | ????????????o??????????# ?????????? | | ???????????????????????# ????????? | | ???????????????????????#s ????????? | | ???????????????????????#s@ p s ????????? | | ????????????????????####/#s#######???????????????? | | ????????????????????# cc #???????????????? | | ????????????????????# c #???????????????? | | ????????????????????# c #???????????????? | | ????????????????????# s #???????????????? | | ????????????????????# """" #???????????????? | | ????????????????????# """" #???????????????? | | ????????????????????# """" #???????????????? | | ????????????????????# """" #???????????????? | | ????????????????????# h #???????????????? | | ????????????????????# #???????????????? | | ?????????????????#### #???????????????? | | ?????????????????# + #???????????????? | | ?????????????????# h####h###########?????????????? | | ?????????????????# #??# #???? #?????????????? | | ?????????????????# =#??? #??! ??????????????? | | ?????????????????# ####h## "" ???????????????? | | ?????????????????# ! " """"????????????????? | | ?????????????????# % ## """"?????????????? ? | | ?????????????????# / #????????????????????? ? | | ?????????????????#^ #????????????????????? # | | ?????????????????# = #????????????????????# # | | ?????????????????# *! = #???????????????????? | | ?????????????????# %!= #????????????????????# | +----------------------------------------------------+ Best States ------------- Heat Dissipation 64 Energy Generation 34 Energy Capacity 265 Matter Stores 307 Matter Capacity 500 Sight Range 16 Robot Scan Range 15 Terrain Scan Density 210 ECM Strength 2 Jamming Range 14 Additional Mass Support 9 Base Temperature (-) 100 Armor Coverage 225 Propulsion Shielding 66 Evasion (%) 64 Armor Integrity Analysis 30 Recoil Reduction 4 Offensive Hacking 12 Authchip Count 6 Trap Extractor Capacity 8 Item Schematics ----------------- Humpback | -8/Materials | Scanalyzed Hcp. Storage Unit | -8/Materials | Scanalyzed Huge Storage Unit | -8/Materials | Scanalyzed Lgt. Particle Reactor | -3/Research | Downloaded Robot Schematics ------------------ K-01 Serf | -2/Quarantine | Archive Fabricated ------------ Nothing Alien Tech Used ----------------- Transdimensional Reconstructor High-powered Transdimensional Reconstructor Achievements -------------- None Challenges ------------ None Game ------ Seed DefenseInsulationChainsword Manual? 0 Play Time 01:19:50 Cumulative 442.7 hours Start 2024.06.30 @ 23:15:25 End 2024.07.01 @ 00:42:22 Sessions 3 Manual Loads 0 Difficulty Rogue Special Mode None Game No. 171 Rogue 168 Adventurer 3 Explorer 0 Win Type - Total 7 Types 4/1/0/1/0/1/0/0/0 Lore% 81 Gallery% 88 Achievement% 86 Wizard Run 0 Options --------- Layout 2 ASCII 0 Keyboard 0 Movement Numpad Keybinds 0 Fullscreen 2 Font 24/Smallcaps Map View 50x44 Zoom Use 0% Tactical HUD 1 Map Filters NONE Filters NONE Steam 1 RUN: 4c759672-b836-47fe-8ad1-ecbb589bc1d8